bitfinex/quotes_SOLUSD_20241125
["timestamp","ask_amount","ask_price","bid_price","bid_amount"]
[1732574861303,10.0,235.57,235.49,4.2464]
[1732574861472,14.30988834,235.53,235.48,486.54488105]
[1732574862384,23.776884,235.56,235.48,486.54488105]
[1732574862584,14.30988834,235.54,235.48,486.54488105]
[1732574862779,14.30988834,235.54,235.48,490.79148105]
[1732574863201,23.776884,235.56,235.48,490.79148105]
[1732574863376,4.2433,235.67,235.53,14.30988834]
[1732574863703,14.30988834,235.63,235.53,14.30988834]
[1732574865014,14.30988834,235.63,235.54,4.2455]
[1732574865183,14.30988834,235.61,235.54,4.2455]
[1732574865582,4.2432,235.67,235.54,4.2455]
[1732574865583,14.30988834,235.58,235.54,4.2455]
[1732574866078,14.30988834,235.6,235.54,4.2455]
[1732574866907,14.30988834,235.6,235.52,14.8603]
[1732574867401,14.30988834,235.62,235.52,14.8603]
[1732574867707,14.30988834,235.62,235.53,14.30988834]
[1732574867880,14.30988834,235.62,235.54,4.2455]
[1732574868815,24.30988834,235.64,235.54,14.8594]
[1732574869016,14.30988834,235.64,235.55,14.30988834]
[1732574869882,14.30988834,235.66,235.57,14.30988834]
[1732574870323,14.30988834,235.66,235.58,4.2448]
[1732574871312,0.5076452,235.69,235.58,4.2448]
[1732574871513,14.30988834,235.68,235.59,14.30988834]
[1732574872015,0.5076452,235.69,235.61,14.30988834]
[1732574872386,14.30988834,235.68,235.59,14.30988834]
[1732574873512,14.30988834,235.66,235.6,4.2444]
[1732574874019,14.30988834,235.64,235.58,4.2446]
[1732574874331,30.0,235.6,235.58,4.2446]
[1732574876295,30.0,235.6,235.59,14.30988834]
[1732574877918,30.0,235.6,235.58,4.2446]
[1732574878123,30.0,235.6,235.58,18.55448834]
[1732574880599,30.0,235.6,235.58,4.2446]
[1732574881635,30.0,235.6,235.58,18.55448834]
[1732574882029,30.0,235.6,235.58,1.85448834]
[1732574882404,30.0,235.6,235.54,24.92358834]
[1732574882623,30.0,235.6,235.54,10.6137]
[1732574883522,30.0,235.6,235.55,10.6134]
[1732574886347,30.0,235.6,235.55,14.8587]
[1732574887646,30.0,235.6,235.52,14.30988834]
[1732574888341,14.30988834,235.59,235.51,4.16233529]
[1732574888545,30.0,235.56,235.5,19.02423529]
[1732574890016,30.0,235.56,235.51,18.47222363]
[1732574891528,30.0,235.56,235.53,14.30988834]
[1732574891726,14.30988834,235.62,235.54,4.2455]
[1732574892241,14.30988834,235.62,235.54,19.20684254]
[1732574892563,14.30988834,235.62,235.54,14.8594]
[1732574893045,14.30988834,235.62,235.54,19.20669227]
[1732574893624,14.30988834,235.62,235.58,486.54488105]
[1732574894034,14.30988834,235.62,235.58,490.78958105]
[1732574894734,30.0,235.59,235.58,490.78958105]
[1732574896848,30.0,235.59,235.58,490.28958105]
[1732574899028,0.5076452,235.69,235.61,20.0]
[1732574899228,0.5076452,235.69,235.68,14.30988834]
[1732574900344,0.5076452,235.69,235.68,18.55288834]
[1732574901752,0.5076452,235.69,235.68,32.86277668]
[1732574901962,0.5076452,235.69,235.68,18.55288834]
[1732574902840,0.5076452,235.69,235.68,32.86277668]
[1732574904027,26.94788834,235.86,235.68,32.86277668]
[1732574904253,26.94788834,235.86,235.78,14.30988834]
[1732574904451,30.0,235.79,235.78,14.30988834]
[1732574904660,30.0,235.79,235.78,18.55108834]
[1732574905155,30.0,235.79,235.78,4.2412]
[1732574907749,14.30988834,235.9,235.78,14.8443]
[1732574907950,14.30988834,235.9,235.81,14.30988834]
[1732574908148,30.0,235.82,235.81,14.30988834]
[1732574908551,30.0,235.82,235.8,14.30988834]
[1732574908765,30.0,235.82,235.81,4.2407]
[1732574909451,0.5076452,235.92,235.81,4.2407]
[1732574909640,0.5076452,235.92,235.83,14.30988834]
[1732574909841,30.0,235.84,235.83,14.30988834]
[1732574910445,0.5076452,235.92,235.83,14.30988834]
[1732574910962,0.5076452,235.92,235.81,10.6017]
[1732574910963,0.5076452,235.92,235.91,14.30988834]
[1732574911266,30.5076452,235.92,235.91,14.30988834]
[1732574911636,0.5076452,235.92,235.89,14.30988834]
[1732574911839,12.638,236.04,235.87,32.7365]
[1732574911840,14.30988834,236.0,235.91,34.30988834]
[1732574912144,14.30988834,235.98,235.92,20.0]
[1732574912455,14.30988834,236.0,235.92,20.0]
[1732574912755,14.30988834,236.03,235.93,18.54838834]
[1732574913464,14.30988834,236.03,235.95,14.30988834]
[1732574914463,14.30988834,236.03,235.93,29.14468834]
[1732574914652,14.30988834,236.01,235.93,29.14468834]
[1732574914843,22.0439,236.1,235.93,29.14468834]
[1732574914844,12.0439,236.1,235.95,14.30988834]
[1732574915065,14.30988834,236.01,235.93,29.14468834]
[1732574915250,14.30988834,236.01,235.93,68.89020823]
[1732574915446,10.0,236.08,235.93,54.58031989]
[1732574915654,14.30988834,236.02,235.96,20.0]
[1732574915857,16.2794,236.1,235.93,54.58031989]
[1732574915858,14.30988834,236.0,235.93,54.58031989]
[1732574916659,14.30988834,236.02,235.93,54.58031989]
[1732574916847,14.30988834,236.02,235.94,39.74551989]
[1732574917046,14.30988834,236.06,235.96,14.30988834]
[1732574917258,14.30988834,236.06,235.98,14.30988834]
[1732574917565,14.30988834,236.08,235.98,14.30988834]
[1732574917867,14.30988834,236.08,236.0,14.30988834]
[1732574918755,14.30988834,236.1,236.01,4.2371]
[1732574919153,14.30988834,236.12,236.02,14.30988834]
[1732574919646,14.30988834,236.12,236.03,39.74551989]
[1732574919851,14.30988834,236.12,236.02,54.05540823]
[1732574920169,21.40763404,236.14,236.05,14.30988834]
[1732574920666,7.0977457,236.14,236.08,14.30988834]
[1732574920968,7.0977457,236.14,236.08,18.54558834]
[1732574921468,0.5076452,236.15,236.08,18.54558834]
[1732574921650,0.5076452,236.15,236.08,14.30988834]
[1732574921963,14.30988834,236.18,236.11,14.30988834]
[1732574922270,14.30988834,236.18,236.09,14.30988834]
[1732574922442,18.54398834,236.18,236.09,14.30988834]
[1732574923469,14.30988834,236.16,236.09,18.54548834]
[1732574924741,14.30988834,236.13,236.09,4.2356]
[1732574924944,14.30988834,236.14,236.09,4.2356]
[1732574925368,14.30988834,236.15,236.09,4.2356]
[1732574925954,14.30988834,236.15,236.04,10.5911]
[1732574925955,14.30988834,236.18,236.1,14.30988834]
[1732574926955,4.2339,236.19,236.08,14.30988834]
[1732574927162,14.30988834,236.16,236.09,4.2356]
[1732574927972,4.2331,236.23,236.13,14.30988834]
[1732574928149,14.30988834,236.21,236.13,14.30988834]
[1732574929179,14.30988834,236.23,236.15,14.30988834]
[1732574929867,14.30988834,236.23,236.14,14.8216]
[1732574929868,14.30988834,236.25,236.17,14.30988834]
[1732574930569,14.30988834,236.27,236.19,14.30988834]
[1732574930979,24.2317,236.32,236.19,14.30988834]
[1732574931151,14.30988834,236.28,236.2,4.2337]
[1732574933251,14.30988834,236.31,236.21,14.30988834]
[1732574933489,14.30988834,236.32,236.24,14.30988834]
[1732574933781,4.2304,236.38,236.26,14.30988834]
[1732574933949,1.96491743,236.39,236.26,14.30988834]
[1732574933950,14.30988834,236.35,236.26,14.30988834]
[1732574934946,14.30988834,236.37,236.28,14.30988834]
[1732574935364,14.81753354,236.39,236.3,14.30988834]
[1732574935778,0.5076452,236.39,236.32,14.30988834]
[1732574937378,0.5076452,236.39,236.33,4.2313]
[1732574937569,14.81753354,236.39,236.33,4.2313]
[1732574937754,14.30988834,236.37,236.28,14.30988834]
[1732574938085,0.5076452,236.39,236.34,14.30988834]
[1732574938456,0.5076452,236.39,236.38,14.30988834]
[1732574938871,0.5076452,236.39,236.29,20.0]
[1732574939064,0.5076452,236.39,236.37,14.30988834]
[1732574941166,0.5076452,236.39,236.37,18.54038834]
[1732574942482,0.5076452,236.39,236.37,14.30988834]
[1732574942661,0.5076452,236.39,236.37,18.54048834]
[1732574943680,0.5076452,236.39,236.37,14.30988834]
[1732574943865,0.5076452,236.39,236.37,18.54048834]
[1732574944970,10.571,236.5,236.37,18.54048834]
[1732574944971,4.79526343,236.6,236.4,10.0]
[1732574945168,14.30988834,236.46,236.4,10.0]
[1732574945364,14.30988834,236.47,236.41,10.0]
[1732574945585,14.30988834,236.47,236.4,10.0]
[1732574946273,14.30988834,236.49,236.4,24.30988834]
[1732574946779,14.30988834,236.49,236.4,14.30988834]
[1732574946979,14.30988834,236.49,236.4,24.30988834]
[1732574947698,14.30988834,236.51,236.42,24.30988834]
[1732574947898,4.2283,236.5,236.42,24.30988834]
[1732574950377,4.2283,236.5,236.42,14.30988834]
[1732574950577,4.2283,236.5,236.42,24.30988834]
[1732574951777,14.30988834,236.47,236.42,10.0]
[1732574952106,14.30988834,236.47,236.4,20.0]
[1732574952989,14.30988834,236.44,236.4,10.0]
[1732574953195,14.30988834,236.43,236.4,10.0]
[1732574953498,14.30988834,236.44,236.38,10.0]
[1732574953686,14.30988834,236.45,236.39,10.0]
[1732574954085,14.30988834,236.44,236.39,10.0]
[1732574954285,14.30988834,236.46,236.39,10.0]
[1732574954685,14.30988834,236.41,236.36,10.0]
[1732574955002,14.30988834,236.39,236.36,10.0]
[1732574955182,14.30988834,236.42,236.36,10.0]
[1732574955383,14.30988834,236.44,236.36,10.0]
[1732574955883,14.30988834,236.44,236.36,20.0]
[1732574956387,14.30988834,236.44,236.35,24.30988834]
[1732574956388,4.2295,236.43,236.35,24.30988834]
[1732574956585,4.2295,236.43,236.37,10.0]
[1732574956783,14.30988834,236.46,236.39,10.0]
[1732574957723,14.30988834,236.46,236.41,10.0]
[1732574957882,18.53848834,236.48,236.41,10.0]
[1732574959914,14.30988834,236.5,236.41,10.0]
[1732574960207,14.30988834,236.5,236.43,10.0]
[1732574960407,4.2274,236.55,236.43,10.0]
[1732574960408,14.30988834,236.54,236.45,24.30988834]
[1732574960579,4.2274,236.55,236.48,10.0]
[1732574962376,21.1251,236.69,236.48,20.0]
[1732574962702,14.30988834,236.58,236.51,10.0]
[1732574963211,14.30988834,236.58,236.48,10.0]
[1732574963212,14.30988834,236.58,236.49,10.0]
[1732574963595,14.30988834,236.58,236.51,10.0]
[1732574964005,14.30988834,236.58,236.51,22.7703]
[1732574964510,14.30988834,236.58,236.52,32.9724]
[1732574964809,14.7878,236.68,236.52,32.9724]
[1732574964987,14.30988834,236.6,236.52,32.9724]
[1732574965383,14.30988834,236.64,236.55,14.30988834]
[1732574965606,4.226,236.63,236.55,14.30988834]
[1732574967291,14.30988834,236.62,236.55,14.30988834]
[1732574967694,14.30988834,236.62,236.53,34.30988834]
[1732574968601,4.2263,236.61,236.53,34.30988834]
[1732574968909,4.2263,236.61,236.55,14.30988834]
[1732574972019,4.2263,236.61,236.55,24.30988834]
[1732574972514,23.776884,236.68,236.57,14.30988834]
[1732574972910,14.30988834,236.65,236.57,14.30988834]
[1732574973688,20.0,236.68,236.52,37.2003]
[1732574973689,14.30988834,236.63,236.55,14.30988834]
[1732574974189,14.30988834,236.62,236.54,14.30988834]
[1732574974394,14.30988834,236.62,236.53,20.0]
[1732574974395,13.3074,236.71,236.58,14.30988834]
[1732574974715,3.803,236.65,236.6,14.30988834]
[1732574975015,14.30988834,236.68,236.6,14.30988834]
[1732574975216,14.30988834,236.68,236.62,20.0]
[1732574975423,14.30988834,236.7,236.62,20.0]
[1732574975597,18.11218834,236.7,236.62,20.0]
[1732574976018,18.11218834,236.7,236.62,34.30988834]
[1732574977001,18.11218834,236.7,236.62,38.53598834]
[1732574977202,18.11218834,236.7,236.62,24.30988834]
[1732574978503,14.30988834,236.68,236.6,34.30988834]
[1732574978693,18.11258834,236.68,236.6,34.30988834]
[1732574978899,18.11258834,236.68,236.6,24.30988834]
[1732574979217,18.11258834,236.68,236.6,28.53638834]
[1732574979396,18.11258834,236.68,236.6,24.30988834]
[1732574980031,18.11258834,236.68,236.6,28.53638834]
[1732574980400,18.11258834,236.68,236.6,24.30988834]
[1732574980622,3.8014,236.75,236.62,24.30988834]
[1732574980926,14.30988834,236.7,236.62,24.30988834]
[1732574981112,13.305,236.75,236.63,43.8858]
[1732574981323,14.30988834,236.69,236.63,43.8858]
[1732574981619,14.30988834,236.69,236.63,31.6211]
[1732574982409,13.305,236.75,236.63,31.6211]
[1732574982410,23.776884,236.74,236.63,31.6211]
[1732574982916,13.3061,236.73,236.63,31.6211]
[1732574983113,9.06614834,236.69,236.63,31.6211]
[1732574985051,13.3061,236.73,236.63,31.6211]
[1732574985247,9.06614834,236.69,236.63,31.6211]
[1732574985467,4.43553762,236.85,236.63,31.6211]
[1732574985755,9.06614834,236.7,236.63,31.6211]
[1732574987053,9.06614834,236.7,236.64,10.0]
[1732574989023,9.06614834,236.7,236.63,41.6211]
[1732574989352,3.8024,236.69,236.63,41.6211]
[1732574990756,3.8024,236.69,236.63,50.68724834]
[1732574991240,3.8024,236.69,236.63,31.6211]
[1732574991751,3.3793,236.73,236.65,10.0]
[1732574991969,9.06614834,236.72,236.64,9.06614834]
[1732574992347,9.06614834,236.72,236.64,10.0]
[1732574992649,30.0,236.65,236.64,10.0]
[1732574992965,30.0,236.65,236.64,19.06614834]
[1732574993128,30.0,236.65,236.64,9.06614834]
[1732574993328,30.0,236.65,236.63,41.6211]
[1732574995230,30.0,236.65,236.63,50.68724834]
[1732574995858,30.0,236.65,236.64,10.0]
[1732574997237,30.0,236.65,236.64,14.2258]
[1732574997439,30.0,236.65,236.64,23.29194834]
[1732574997660,30.0,236.65,236.64,19.06614834]
[1732574998434,30.0,236.65,236.64,10.0]
[1732574999612,30.0,236.65,236.64,14.2258]
[1732575000236,30.0,236.65,236.64,10.0]
[1732575002119,30.0,236.65,236.63,10.0]
[1732575004008,33.3805,236.65,236.58,10.0]
[1732575004212,42.44664834,236.65,236.56,10.0]
[1732575004639,9.06614834,236.59,236.52,20.0]
[1732575004941,39.06614834,236.57,236.48,10.0]
[1732575005350,3.3818,236.56,236.48,10.0]
[1732575005640,9.06614834,236.55,236.47,10.0]
[1732575005840,30.0,236.53,236.47,10.0]
[1732575006046,30.0,236.53,236.52,20.0]
[1732575006419,30.0,236.53,236.5,9.06614834]
[1732575006922,30.0,236.53,236.39,1.50091237]
[1732575006923,30.0,236.53,236.41,10.0]
[1732575007230,9.06614834,236.49,236.38,10.0]
[1732575007429,30.0,236.47,236.39,10.0]
[1732575007737,30.0,236.47,236.38,10.0]
[1732575007738,30.0,236.47,236.41,10.0]
[1732575008042,30.0,236.47,236.39,10.0]
[1732575008232,30.0,236.47,236.41,10.0]
[1732575008433,39.06614834,236.47,236.41,10.0]
[1732575008747,9.06614834,236.45,236.39,10.0]
[1732575008923,30.0,236.42,236.38,10.0]
[1732575010421,44.1944899,236.42,236.35,10.0]
[1732575010638,14.1944899,236.4,236.35,10.0]
[1732575010822,30.0,236.36,236.35,10.0]
[1732575011345,30.0,236.36,236.31,4.2315]
[1732575011346,44.1944899,236.36,236.3,10.0]
[1732575011648,14.1944899,236.34,236.28,41.1095]
[1732575011954,30.0,236.32,236.26,12.4534]
[1732575012147,30.0,236.32,236.19,10.0]
[1732575012444,14.1944899,236.25,236.17,10.3608713]
[1732575012645,14.1944899,236.25,236.17,20.3608713]
[1732575012850,44.1944899,236.23,236.17,0.3608713]
[1732575013051,14.1944899,236.21,236.17,0.3608713]
[1732575013346,14.1944899,236.22,236.17,0.3608713]
[1732575013735,14.1944899,236.2,236.17,0.3608713]
[1732575014028,30.0,236.18,236.17,0.3608713]
[1732575014230,35.66571895,236.18,236.17,0.3608713]
[1732575015155,49.86020885,236.18,236.17,0.3608713]
[1732575015526,35.66571895,236.18,236.17,0.3608713]
[1732575015726,5.66571895,236.18,236.17,0.3608713]
[1732575016250,19.86020885,236.18,236.17,0.3608713]
[1732575016428,3.3873,236.17,236.05,10.0]
[1732575016629,34.98473878,236.18,236.13,10.0]
[1732575016946,14.1944899,236.17,236.15,10.0]
[1732575017259,14.1944899,236.17,236.07,34.1944899]
[1732575017550,14.1944899,236.15,236.07,33.6944899]
[1732575017737,14.1944899,236.13,236.07,10.0]
[1732575018341,7.83461837,236.13,236.07,10.0]
[1732575018749,30.0,236.11,236.07,10.0]
[1732575019627,30.0,236.11,236.08,10.0]
[1732575020345,30.0,236.11,236.0,31.1095]
[1732575020346,14.1944899,236.1,236.0,45.3467]
[1732575020542,44.1944899,236.08,236.01,22.4534]
[1732575020753,44.1944899,236.08,236.05,10.0]
[1732575021251,44.1944899,236.08,236.02,10.0]
[1732575021252,30.0,236.08,236.02,10.0]
[1732575021454,44.1944899,236.08,236.02,10.0]
[1732575021828,44.1944899,236.08,236.04,10.0]
[1732575022350,44.1944899,236.08,236.02,10.0]
[1732575023650,44.1944899,236.08,236.01,12.4534]
[1732575023854,14.1944899,236.06,236.01,12.4534]
[1732575024151,30.0,236.03,236.01,12.4534]
[1732575024358,30.0,236.03,236.0,31.1095]
[1732575024858,30.0,236.03,235.95,24.2381]
[1732575025054,30.0,236.03,235.97,10.0]
[1732575025227,30.0,236.03,235.95,24.2381]
[1732575025425,30.0,236.03,235.97,10.0]
[1732575025654,30.0,236.03,235.99,10.0]
[1732575026044,30.0,236.03,235.97,10.0]
[1732575026245,30.0,236.03,235.96,28.4323899]
[1732575026551,30.0,236.03,235.97,10.0]
[1732575026726,30.0,236.03,235.96,14.2379]
[1732575027433,30.0,236.03,235.99,10.0]
[1732575027931,30.0,236.03,235.96,14.2379]
[1732575028128,14.1944899,236.05,236.01,10.0]
[1732575028331,14.1944899,236.05,235.97,33.776884]
[1732575028551,14.1944899,236.05,235.97,24.2376]
[1732575029353,14.1944899,236.03,235.97,24.2376]
[1732575029853,14.1944899,236.05,236.01,20.0]
[1732575030153,30.0,236.02,236.01,10.0]
[1732575034473,30.0,236.02,236.01,20.0]
[1732575035274,14.1944899,236.11,236.03,10.0]
[1732575035444,14.1944899,236.11,236.03,34.1944899]
[1732575035445,30.0,236.04,236.03,34.1944899]
[1732575037571,30.0,236.04,236.03,38.4311899]
[1732575037742,14.1944899,236.17,236.09,10.0]
[1732575037941,14.1944899,236.19,236.15,10.0]
[1732575038149,2.9628,236.26,236.16,10.0]
[1732575038360,14.1944899,236.24,236.15,24.1944899]
[1732575039164,14.1944899,236.22,236.15,14.2344]
[1732575041474,14.1944899,236.22,236.16,10.0]
[1732575042254,14.1944899,236.22,236.16,14.2343]
[1732575042575,14.1944899,236.22,236.16,4.2343]
[1732575043077,14.1944899,236.22,236.15,14.2345]
[1732575043272,30.0,236.17,236.15,14.2345]
[1732575044358,30.0,236.17,236.16,10.0]
[1732575044575,30.0,236.17,236.16,14.2344]
[1732575045064,17.1575899,236.24,236.19,10.0]
[1732575045267,30.0,236.2,236.19,10.0]
[1732575045660,30.0,236.2,236.16,4.2344]
[1732575047493,30.0,236.2,236.15,24.2345]
[1732575048797,30.0,236.2,236.15,10.0]
[1732575049088,47.1580899,236.2,236.15,10.0]
[1732575050680,47.1580899,236.2,236.12,61.5733899]
[1732575050884,47.1580899,236.2,236.12,47.3382899]
[1732575051075,47.1580899,236.2,236.17,10.0]
[1732575051076,30.0,236.2,236.17,10.0]
[1732575051385,30.0,236.2,236.14,14.1944899]
[1732575051766,30.0,236.2,236.14,24.1944899]
[1732575052986,14.1944899,236.19,236.09,10.0]
[1732575053185,30.0,236.18,236.1,10.0]
[1732575053376,30.0,236.18,236.12,10.0]
[1732575053683,30.0,236.18,236.1,20.0]
[1732575054290,30.0,236.18,236.13,10.0]
[1732575055086,30.0,236.18,236.11,10.0]
[1732575055462,30.0,236.18,236.11,14.2353]
[1732575056482,14.1944899,236.17,236.11,14.2353]
[1732575056682,30.0,236.15,236.11,4.2353]
[1732575056991,30.0,236.15,236.1,10.0]
[1732575057291,30.0,236.15,236.1,13.2354]
[1732575058585,14.1944899,236.17,236.1,13.2354]
[1732575059090,14.1944899,236.15,236.08,4.2357]
[1732575059392,14.1944899,236.15,236.07,14.236]
[1732575059887,14.1944899,236.15,236.07,10.0]
[1732575060086,14.1944899,236.15,236.06,13.2362]
[1732575060293,14.1944899,236.13,236.05,24.1944899]
[1732575060476,14.1944899,236.13,236.04,4.2365]
[1732575060802,2.9645,236.12,236.03,28.4311899]
[1732575061572,30.0,236.1,236.01,24.1944899]
[1732575062167,14.1944899,236.09,236.01,10.0]
[1732575062677,30.0,236.07,236.01,10.0]
[1732575063190,2.9649,236.1,236.01,24.1944899]
[1732575063600,14.1944899,236.09,236.01,14.1944899]
[1732575063901,14.1944899,236.09,236.01,24.1944899]
[1732575064804,17.1594899,236.09,236.01,14.1944899]
[1732575065669,17.1594899,236.09,236.0,4.2372]
[1732575066095,30.0,236.06,236.0,4.2372]
[1732575066798,14.1944899,236.03,235.99,9.0]
[1732575067295,30.0,236.01,235.99,9.0]
[1732575067485,30.0,236.01,235.98,4.0]
[1732575067788,30.0,236.01,235.97,4.2377]
[1732575067997,30.0,236.01,235.98,4.0]
[1732575068416,30.0,236.01,235.98,8.2375]
[1732575069067,30.0,236.01,235.98,4.0]
[1732575070291,30.0,236.01,235.96,4.2379]
[1732575073210,30.0,236.01,236.0,4.0]
[1732575078318,30.0,236.01,236.0,8.2372]
[1732575078491,30.0,236.01,236.0,17.34877767]
[1732575078897,30.0,236.01,236.0,8.2372]
[1732575079098,30.0,236.01,236.0,17.34877767]
[1732575079599,30.0,236.01,236.0,8.2372]
[1732575079903,30.0,236.01,236.0,17.34877767]
[1732575080106,30.0,236.01,236.0,8.2372]
[1732575080297,30.0,236.01,236.0,17.34877767]
[1732575080483,30.0,236.01,236.0,8.2372]
[1732575080683,30.0,236.01,236.0,17.34877767]
[1732575080887,30.0,236.01,236.0,4.0]
[1732575081108,30.0,236.01,235.96,4.0]
[1732575081308,9.11157767,235.98,235.94,0.5128481]
[1732575081889,44.6783962,236.04,235.94,0.5128481]
[1732575081890,30.0,235.96,235.94,0.5128481]
[1732575082797,9.11157767,235.95,235.94,0.5128481]
[1732575083002,39.11157767,235.95,235.94,0.5128481]
[1732575084113,9.11157767,235.95,235.94,0.5128481]
[1732575084416,14.25901573,235.95,235.94,0.5128481]
[1732575085785,24.25901573,235.95,235.94,0.5128481]
[1732575085985,29.85569007,235.95,235.94,0.5128481]
[1732575087009,32.4539519,235.94,235.82,4.0]
[1732575087203,14.25901573,235.9,235.82,4.0]
[1732575087889,30.0,235.88,235.82,4.0]
[1732575089893,32.9676,235.88,235.82,4.0]
[1732575090104,47.22661573,235.88,235.82,4.0]
[1732575092693,14.25901573,235.84,235.7,4.5128481]
[1732575092891,14.25901573,235.75,235.7,0.5128481]
[1732575093804,14.25901573,235.73,235.7,0.5128481]
[1732575094894,30.0,235.71,235.7,0.5128481]
[1732575095702,30.0,235.71,235.7,4.7554481]
[1732575095909,30.0,235.71,235.7,8.7554481]
[1732575096214,30.0,235.71,235.7,0.5128481]
[1732575096617,30.0,235.71,235.7,4.7554481]
[1732575096816,30.0,235.71,235.7,0.5128481]
[1732575100022,30.0,235.71,235.7,4.7554481]
[1732575100228,30.0,235.71,235.7,36.8965481]
[1732575100929,7.4181,235.91,235.79,4.0]
[1732575101130,14.25901573,235.85,235.79,4.0]
[1732575101923,14.25901573,235.83,235.76,4.0]
[1732575102107,14.25901573,235.83,235.77,4.2414]
[1732575103130,30.0,235.79,235.77,4.2414]
[1732575104239,30.0,235.79,235.78,4.0]
[1732575109417,30.0,235.79,235.78,69.14311546]
[1732575109936,30.0,235.79,235.78,54.88409973]
[1732575110127,30.0,235.79,235.78,31.10721573]
[1732575110843,14.25901573,235.87,235.81,4.0]
[1732575111038,30.0,235.82,235.81,4.0]
[1732575111618,14.25901573,235.88,235.81,4.0]
[1732575112343,14.25901573,235.87,235.81,4.0]
[1732575113137,14.25901573,235.87,235.84,4.0]
[1732575113327,30.0,235.85,235.81,4.0]
[1732575113526,30.0,235.85,235.84,4.0]
[1732575114954,30.0,235.85,235.82,4.0]
[1732575118133,44.25901573,235.85,235.84,4.0]
[1732575118458,39.12891804,235.85,235.84,4.0]
[1732575118748,30.0,235.85,235.81,4.0]
[1732575119152,30.0,235.85,235.84,4.0]
[1732575119842,30.0,235.85,235.81,4.0]
[1732575120025,30.0,235.85,235.84,4.0]
[1732575122351,30.0,235.85,235.82,4.0]
[1732575122521,30.0,235.85,235.84,4.0]
[1732575124449,30.0,235.85,235.82,4.0]
[1732575124623,30.0,235.85,235.84,4.0]
[1732575126328,30.0,235.85,235.82,4.0]
[1732575126533,30.0,235.85,235.84,4.0]
[1732575127040,42.09681804,235.85,235.82,4.0]
[1732575127630,42.09681804,235.85,235.77,4.2414]
[1732575127631,42.09681804,235.85,235.8,4.0]
[1732575127831,30.0,235.85,235.82,4.0]
[1732575128663,39.12891804,235.85,235.82,4.0]
[1732575129160,9.12891804,235.85,235.82,4.0]
[1732575129738,2.9672,235.91,235.82,4.0]
[1732575129939,9.12891804,235.86,235.82,4.0]
[1732575131342,12.09671804,235.86,235.82,4.0]
[1732575132148,12.09671804,235.86,235.7,32.6539481]
[1732575132149,30.0,235.83,235.75,4.0]
[1732575132345,9.12891804,235.82,235.75,4.0]
[1732575132965,30.0,235.83,235.7,0.5128481]
[1732575132966,12.09771804,235.78,235.72,4.0]
[1732575133255,30.0,235.76,235.72,4.0]
[1732575134356,30.0,235.76,235.74,4.0]
[1732575136133,30.0,235.76,235.7,0.5128481]
[1732575136134,32.9691,235.76,235.7,0.5128481]
[1732575136340,9.12891804,235.75,235.7,0.5128481]
[1732575136648,30.0,235.73,235.7,0.5128481]
[1732575137145,2.9696,235.72,235.7,0.5128481]
[1732575137459,30.0,235.71,235.7,0.5128481]
[1732575139241,32.9697,235.71,235.7,0.5128481]
[1732575139742,30.0,235.71,235.7,0.5128481]
[1732575140056,32.9697,235.71,235.7,0.5128481]
[1732575140856,30.0,235.71,235.7,0.5128481]
[1732575141456,30.0,235.71,235.7,4.5128481]
[1732575142082,32.9697,235.71,235.7,0.5128481]
[1732575142942,30.0,235.71,235.7,13.64176614]
[1732575144268,30.0,235.71,235.7,37.41865014]
[1732575144838,30.0,235.71,235.7,83.43925014]
[1732575145279,9.12891804,235.85,235.83,4.0]
[1732575145447,30.0,235.84,235.81,4.0]
[1732575145763,9.12891804,235.82,235.81,4.0]
[1732575146353,39.12891804,235.82,235.81,4.0]
[1732575146668,30.0,235.82,235.81,4.0]